fUSD/lending_fUSD_20260118
["ID","MTS","AMOUNT","RATE_DAILY","PERIOD"]
[402661099,1768763441168,-539.0,0.00016101,2]
[402661100,1768763441177,-164.98,0.00016136,2]
[402661101,1768763441186,-1492.7,0.00016156,2]
[402661102,1768763441195,-539.0,0.00016156,2]
[402661103,1768763441204,-529.63928383,0.00016171,2]
[402661104,1768763441214,-506.27037057,0.00016172,2]
[402661105,1768763441223,-25408.01210923,0.00016196,2]
[402661106,1768763441233,-15995.58670718,0.00016196,2]
[402661107,1768763441242,-150.0,0.000162,2]
[402661108,1768763441252,-150.0,0.000162,2]
[402661109,1768763441262,-150.0,0.000162,2]
[402661110,1768763441271,-150.0,0.000162,2]
[402661111,1768763441280,-150.0,0.000162,2]
[402661112,1768763441290,-150.0,0.000162,2]
[402661113,1768763441299,-150.0,0.000162,2]
[402661114,1768763441307,-539.0,0.00016211,2]
[402661115,1768763441316,-636.39748124,0.00016252,2]
[402661116,1768763441325,-539.0,0.00016266,2]
[402661117,1768763441334,-539.0,0.0001632,2]
[402661118,1768763441344,-548.21642172,0.00016375,2]
[402661119,1768763441354,-4437.00412724,0.00016407,2]
[402661120,1768763441363,-1492.7,0.0001643,2]
[402661121,1768763441375,-500.0,0.00016437,2]
[402661122,1768763441385,-594.61669288,0.00016437,2]
[402661123,1768763441394,-500.0,0.00016437,2]
[402661124,1768763441403,-500.0,0.00016437,2]
[402661125,1768763441412,-775.70980585,0.00016438,2]
[402661126,1768763441422,-775.70980585,0.00016438,2]
[402661127,1768763441431,-775.70980585,0.00016438,2]
[402661128,1768763441440,-775.70980585,0.00016438,2]
[402661129,1768763441452,-775.70980585,0.00016438,2]
[402661130,1768763441461,-775.70980585,0.00016438,2]
[402661131,1768763441470,-775.70980585,0.00016438,2]
[402661132,1768763441480,-775.70980585,0.00016438,2]
[402661133,1768763441489,-775.70980585,0.00016438,2]
[402661134,1768763441498,-775.70980585,0.00016438,2]
[402661135,1768763441511,-775.70980585,0.00016438,2]
[402661136,1768763441520,-775.70980585,0.00016438,2]
[402661137,1768763441529,-775.70980585,0.00016438,2]
[402661138,1768763441539,-775.70980585,0.00016438,2]
[402661139,1768763441548,-775.70980585,0.00016438,2]
[402661140,1768763441557,-775.70980585,0.00016438,2]
[402661141,1768763441566,-775.70980585,0.00016438,2]
[402661142,1768763441576,-775.70980585,0.00016438,2]
[402661143,1768763441584,-775.70980585,0.00016438,2]
[402661144,1768763441594,-775.70980585,0.00016438,2]
[402661145,1768763441603,-775.70980585,0.00016438,2]
[402661146,1768763441612,-775.70980585,0.00016438,2]
[402661147,1768763441621,-775.70980585,0.00016438,2]
[402661148,1768763441630,-775.70980585,0.00016438,2]
[402661149,1768763441639,-775.70980585,0.00016438,2]
[402661150,1768763441648,-775.70980585,0.00016438,2]
[402661151,1768763441657,-775.70980585,0.00016438,2]
[402661152,1768763441666,-775.70980585,0.00016438,2]
[402661153,1768763441675,-775.70980585,0.00016438,2]
[402661154,1768763441684,-775.70980585,0.00016438,2]
[402661155,1768763441693,-775.70980585,0.00016438,2]
[402661156,1768763441706,-775.70980585,0.00016438,2]
[402661157,1768763441715,-775.70980585,0.00016438,2]
[402661158,1768763441724,-775.70980585,0.00016438,2]
[402661159,1768763441733,-775.70980585,0.00016438,2]
[402661160,1768763441743,-775.70980585,0.00016438,2]
[402661161,1768763441752,-775.70980585,0.00016438,2]
[402661162,1768763441762,-775.70980585,0.00016438,2]
[402661163,1768763441771,-775.70980585,0.00016438,2]
[402661164,1768763441782,-775.70980585,0.00016438,2]
[402661165,1768763441791,-775.70980585,0.00016438,2]
[402661166,1768763441800,-775.70980585,0.00016438,2]
[402661167,1768763441810,-775.70980585,0.00016438,2]
[402661168,1768763441819,-775.70980585,0.00016438,2]
[402661169,1768763441830,-775.70980585,0.00016438,2]
[402661170,1768763441840,-775.70980585,0.00016438,2]
[402661171,1768763441851,-775.70980585,0.00016438,2]
[402661172,1768763441861,-775.70980585,0.00016438,2]
[402661173,1768763441870,-775.70980585,0.00016438,2]
[402661174,1768763441880,-775.70980585,0.00016438,2]
[402661175,1768763441889,-775.70980585,0.00016438,2]
[402661176,1768763441901,-775.70980585,0.00016438,2]
[402661177,1768763441910,-775.70980585,0.00016438,2]
[402661178,1768763441920,-775.70980585,0.00016438,2]
[402661179,1768763441929,-775.70980585,0.00016438,2]
[402661180,1768763441940,-775.70980585,0.00016438,2]
[402661181,1768763441951,-775.70980585,0.00016438,2]
[402661182,1768763441962,-775.70980585,0.00016438,2]
[402661183,1768763441972,-1778.50158372,0.00016438,2]
[402661184,1768763441981,-1778.50158372,0.00016438,2]
[402661185,1768763441991,-1778.50158372,0.00016438,2]
[402661186,1768763442000,-1778.50158372,0.00016438,2]
[402661187,1768763442010,-1778.50158372,0.00016438,2]
[402661188,1768763442019,-1778.50158372,0.00016438,2]
[402661189,1768763442028,-1778.50158372,0.00016438,2]
[402661190,1768763442038,-1778.50158372,0.00016438,2]
[402661191,1768763442049,-1778.50158372,0.00016438,2]
[402661192,1768763442059,-1778.50158372,0.00016438,2]
[402661193,1768763442071,-1778.50158372,0.00016438,2]
[402661194,1768763442080,-1778.50158372,0.00016438,2]
[402661195,1768763442090,-1778.50158372,0.00016438,2]
[402661196,1768763442099,-1778.50158372,0.00016438,2]
[402661197,1768763442109,-1778.50158372,0.00016438,2]
[402661198,1768763442117,-1778.50158372,0.00016438,2]
[402661199,1768763442127,-1778.50158372,0.00016438,2]
[402661200,1768763442136,-1778.50158372,0.00016438,2]
[402661201,1768763442146,-1778.50158372,0.00016438,2]
[402661202,1768763442155,-1778.50158372,0.00016438,2]
[402661203,1768763442166,-1778.50158372,0.00016438,2]
[402661204,1768763442175,-1778.50158372,0.00016438,2]
[402661205,1768763442185,-1778.50158372,0.00016438,2]
[402661206,1768763442195,-1778.50158372,0.00016438,2]
[402661207,1768763442206,-1778.50158372,0.00016438,2]
[402661208,1768763442216,-1778.50158372,0.00016438,2]
[402661209,1768763442226,-1778.50158372,0.00016438,2]
[402661210,1768763442235,-1778.50158372,0.00016438,2]
[402661211,1768763442245,-1778.50158372,0.00016438,2]
[402661212,1768763442254,-1778.50158365,0.00016438,2]
[402661213,1768763442264,-1778.50158365,0.00016438,2]
[402661214,1768763442273,-300.0,0.00016438,2]
[402661215,1768763442292,-300.0,0.00016438,2]
[402661216,1768763442303,-211.77117296,0.00016438,2]
[402661217,1768763442313,-165.1,0.0001644,2]
[402661218,1768763442322,-25408.01210923,0.0001648,2]
[402661219,1768763442332,-15995.58670718,0.0001648,2]
[402661220,1768763442341,-307.64527007,0.00016505,2]
[402661221,1768763442351,-459.63746506,0.00016521,2]
[402661222,1768763442361,-1000.0,0.00016521,2]
[402661223,1768763442370,-1004.10221386,0.00016521,2]
[402661224,1768763442383,-734.02633366,0.00016521,2]
[402661225,1768763442392,-489.94559639,0.00016521,2]
[402661226,1768763442402,-1000.0,0.00016521,2]
[402661227,1768763442411,-1000.0,0.00016521,2]
[402661228,1768763442422,-494.41663554,0.00016521,2]
[402661229,1768763442431,-1000.0,0.00016521,2]
[402661230,1768763442441,-1000.0,0.00016521,2]
[402661231,1768763442451,-1000.0,0.00016521,2]
[402661232,1768763442461,-1002.20709128,0.00016521,2]
[402661233,1768763442471,-1000.0,0.00016521,2]
[402661234,1768763442481,-150.0,0.0001656,2]
[402661235,1768763442491,-529.63928383,0.00016604,2]
[402661236,1768763442500,-6409.05537398,0.00016657,2]
[402661237,1768763442510,-1492.7,0.00016704,2]
[402661238,1768763442519,-420.0,0.00016744,2]
[402661239,1768763442529,-25408.01210923,0.00016764,2]
[402661240,1768763442539,-15995.58670718,0.00016764,2]
[402661241,1768763442549,-195.0,0.00016825,2]
[402661242,1768763442558,-250.0,0.00016825,2]
[402661243,1768763442569,-5000.0,0.00016836,2]
[402661244,1768763442579,-193.0,0.00016836,2]
[402661245,1768763442588,-300.0,0.00016836,2]
[402661246,1768763442598,-195.0,0.00016836,2]
[402661247,1768763442607,-700.0,0.00016856,7]
[402661248,1768763442616,-500.0,0.00016856,7]
[402661249,1768763442626,-500.0,0.00016856,7]
[402661250,1768763442635,-2300.0,0.000169,6]
[402661251,1768763442645,-427.36,0.00016913,2]
[402661252,1768763442655,-150.0,0.0001692,2]
[402661253,1768763442664,-247.62,0.00016928,2]
[402661254,1768763442674,-1492.7,0.00016978,2]
[402661255,1768763442683,-250.0,0.00017,2]
[402661257,1768763442693,-4860.0,0.00017002,2]
[402661259,1768763442703,-529.63928383,0.00017036,2]
[402661261,1768763442712,-976.32,0.00017041,2]
[402661262,1768763442722,-662.88,0.00017041,2]
[402661263,1768763442731,-662.88,0.00017041,2]
[402661264,1768763442741,-662.88,0.00017041,2]
[402661265,1768763442750,-662.88,0.00017041,2]
[402661266,1768763442760,-662.88,0.00017041,2]
[402661267,1768763442770,-662.88,0.00017041,2]
[402661268,1768763442779,-25408.01210923,0.00017048,2]
[402661269,1768763442790,-15995.58670718,0.00017048,2]
[402661270,1768763442800,-1000.0,0.00017053,2]
[402661272,1768763442810,-1000.0,0.00017059,2]
[402661273,1768763442819,-1500.0,0.00017068,2]
[402661274,1768763442833,-1500.0,0.00017068,2]
[402661275,1768763442842,-1500.0,0.00017068,2]
[402661276,1768763442852,-1500.0,0.00017068,2]
[402661277,1768763442862,-1500.0,0.00017068,2]
[402661278,1768763442872,-1500.0,0.00017068,2]
[402661279,1768763442882,-1506.54498696,0.00017068,2]
[402661280,1768763442891,-168.0,0.00017071,2]
[402661281,1768763442901,-1000.0,0.00017096,2]
[402661282,1768763442911,-500.0,0.00017098,2]
[402661283,1768763442921,-585.48495319,0.00017098,2]
[402661284,1768763442931,-500.0,0.00017098,2]
[402661285,1768763442941,-500.0,0.00017098,2]
[402661286,1768763442951,-9000.0,0.00017099,2]
[402661287,1768763442960,-174.61919141,0.00017099,2]
[402661288,1768763442970,-9000.0,0.00017099,2]
[402661289,1768763442979,-9000.0,0.00017099,2]
[402661290,1768763442989,-9000.0,0.00017099,2]
[402661291,1768763442998,-5361.50483063,0.00017099,2]
[402661292,1768763443009,-1000.0,0.00017099,2]
[402661294,1768763443019,-388.23561555,0.00017099,2]
[402661295,1768763443029,-500.0,0.00017099,2]
[402661296,1768763443039,-250.0,0.00017099,2]
[402661297,1768763443049,-1000.0,0.00017099,2]
[402661298,1768763443058,-500.0,0.00017099,2]
[402661299,1768763443068,-500.0,0.00017099,2]
[402661300,1768763443078,-250.0,0.00017099,2]
[402661301,1768763443087,-1000.0,0.00017099,2]
[402661302,1768763443097,-516.55849821,0.00017099,2]
[402661303,1768763443107,-500.0,0.00017099,2]
[402661304,1768763443116,-250.0,0.00017099,2]
[402661305,1768763443127,-1000.0,0.00017099,2]
[402661306,1768763443138,-250.0,0.00017099,2]
[402661307,1768763443147,-500.0,0.00017099,2]
[402661308,1768763443157,-1000.0,0.00017099,2]
[402661309,1768763443167,-250.0,0.00017099,2]
[402661310,1768763443177,-500.0,0.00017099,2]
[402661311,1768763443186,-1000.0,0.00017099,2]
[402661312,1768763443196,-250.0,0.00017099,2]
[402661313,1768763443206,-500.0,0.00017099,2]
[402661314,1768763443217,-1000.0,0.00017099,2]
[402661315,1768763443226,-250.0,0.00017099,2]
[402661316,1768763443236,-151.0,0.00017099,2]
[402661317,1768763443246,-500.0,0.00017099,2]
[402661318,1768763443255,-1000.0,0.00017099,2]
[402661319,1768763443265,-250.0,0.00017099,2]
[402661320,1768763443275,-302.96874146,0.00017099,2]
[402661321,1768763443285,-1000.0,0.00017099,2]
[402661322,1768763443295,-250.0,0.00017099,2]
[402661323,1768763443304,-500.0,0.00017099,2]
[402661324,1768763443315,-1000.0,0.00017099,2]
[402661325,1768763443325,-500.0,0.00017099,2]
[402661326,1768763443334,-250.0,0.00017099,2]
[402661327,1768763443343,-1000.0,0.00017099,2]
[402661328,1768763443353,-500.0,0.00017099,2]
[402661329,1768763443363,-250.0,0.00017099,2]
[402661330,1768763443375,-500.0,0.00017099,2]
[402661331,1768763443386,-500.0,0.00017099,2]
[402661332,1768763443396,-500.0,0.00017099,2]
[402661333,1768763443406,-500.0,0.00017099,2]
[402661334,1768763443417,-500.0,0.00017099,2]
[402661335,1768763443427,-500.0,0.00017099,2]
[402661336,1768763443437,-500.0,0.00017099,2]
[402661337,1768763443447,-500.0,0.00017099,2]
[402661338,1768763443457,-322.6107,0.00017099,2]
[402661339,1768763443466,-500.0,0.00017099,2]
[402661340,1768763443476,-500.0,0.00017099,2]
[402661341,1768763443486,-500.0,0.00017099,2]
[402661343,1768763443495,-500.0,0.00017099,2]
[402661345,1768763443505,-574.12855637,0.00017099,2]
[402661347,1768763443515,-1999.0,0.00017099,2]
[402661349,1768763443524,-250.0,0.00017099,2]
[402661351,1768763443533,-1500.0,0.00017099,2]
[402661353,1768763443543,-250.0,0.00017099,2]
[402661355,1768763443552,-1500.0,0.00017099,2]
[402661357,1768763443561,-250.0,0.00017099,2]
[402661359,1768763443570,-151.0,0.00017099,2]
[402661361,1768763443580,-1500.0,0.00017099,2]
[402661363,1768763443590,-151.0,0.00017099,2]
[402661365,1768763443599,-250.0,0.00017099,2]
[402661367,1768763443609,-1500.0,0.00017099,2]
[402661369,1768763443618,-151.0,0.00017099,2]
[402661371,1768763443627,-250.0,0.00017099,2]
[402661373,1768763443637,-1500.0,0.00017099,2]
[402661375,1768763443646,-151.0,0.00017099,2]
[402661378,1768763443656,-250.0,0.00017099,2]
[402661380,1768763443666,-1500.0,0.00017099,2]
[402661382,1768763443675,-151.0,0.00017099,2]
[402661384,1768763443684,-250.0,0.00017099,2]
[402661386,1768763443694,-1500.0,0.00017099,2]
[402661388,1768763443703,-151.0,0.00017099,2]
[402661390,1768763443713,-1500.0,0.00017099,2]
[402661403,1768763444007,-250.0,0.00017099,2]
[402661404,1768763444022,-151.0,0.00017099,2]
[402661405,1768763444032,-1500.0,0.00017099,2]
[402661406,1768763444042,-250.0,0.00017099,2]
[402661407,1768763444052,-1500.0,0.00017099,2]
[402661408,1768763444062,-250.0,0.00017099,2]
[402661409,1768763444072,-151.0,0.00017099,2]
[402661410,1768763444082,-1500.0,0.00017099,2]
[402661411,1768763444091,-250.0,0.00017099,2]
[402661412,1768763444101,-151.0,0.00017099,2]
[402661413,1768763444110,-151.0,0.00017099,2]
[402661414,1768763444120,-151.0,0.00017099,2]
[402661415,1768763444130,-620.0,0.00017099,2]
[402661416,1768763444141,-1000.0,0.00017102,2]
[402661417,1768763444150,-1000.0,0.0001712,2]
[402661418,1768763444161,-200.0,0.00017137,2]
[402661419,1768763444171,-1000.0,0.0001715,2]
[402661420,1768763444180,-200.0,0.00017159,2]
[402661421,1768763444190,-150.0,0.00017178,2]
[402661422,1768763444199,-467.79,0.00017178,2]
[402661423,1768763444209,-331.35,0.00017178,2]
[402661424,1768763444219,-150.0,0.00017178,2]
[402661425,1768763444229,-150.0,0.00017178,2]
[402661426,1768763444238,-150.0,0.00017178,2]
[402661427,1768763444248,-1000.0,0.00017204,2]
[402661428,1768763444257,-1000.0,0.00017208,2]
[402661429,1768763444267,-1000.0,0.00017226,2]
[402661430,1768763444277,-1000.0,0.00017229,2]
[402661431,1768763444287,-481.32129536,0.00017234,2]
[402661432,1768763444296,-168.0,0.00017243,2]
[402661433,1768763444306,-1000.0,0.00017249,2]
[402661434,1768763444315,-1492.7,0.00017252,2]
[402661435,1768763444325,-1000.0,0.0001726,2]
[402661436,1768763444334,-1000.0,0.00017263,2]
[402661437,1768763444344,-467.79,0.00017264,2]
[402661438,1768763444353,-1000.0,0.00017279,2]
[402661439,1768763444363,-150.0,0.0001728,2]
[402661440,1768763444374,-1000.0,0.00017284,2]
[402661441,1768763444386,-150.0,0.00017289,2]
[402661442,1768763444395,-200.0,0.00017292,2]
[402661443,1768763444405,-168.0,0.00017297,2]
[402661444,1768763444415,-3100.0,0.000173,6]
[402661445,1768763444425,-1000.0,0.00017322,2]
[402661446,1768763444436,-1000.0,0.00017331,2]
[402661447,1768763444447,-25408.01210923,0.00017332,2]
[402661448,1768763444456,-15995.58670718,0.00017332,2]
[402661449,1768763444466,-162.33710457,0.00017334,2]
[402661450,1768763444475,-200.0,0.00017335,2]
[402661451,1768763444485,-1000.0,0.0001735,2]
[402661452,1768763444494,-164.98,0.00017377,2]
[402661453,1768763444503,-1000.0,0.00017386,2]
[402661454,1768763444512,-427.36,0.00017388,2]
[402661455,1768763444521,-247.62,0.00017396,2]
[402661456,1768763444530,-1118.51606834,0.000174,2]
[402661457,1768763444540,-3900.0,0.000174,6]
[402661458,1768763444550,-1000.0,0.00017403,2]
[402661459,1768763444561,-1000.0,0.00017407,2]
[402661460,1768763444571,-224.55,0.00017408,2]
[402661461,1768763444580,-1000.0,0.00017416,2]
[402661462,1768763444589,-5144.0,0.00017419,2]
[402661463,1768763444598,-1000.0,0.00017425,2]
[402661464,1768763444607,-1000.0,0.00017427,2]
[402661465,1768763444616,-307.5,0.00017428,2]
[402661466,1768763444625,-168.0,0.00017461,2]
[402661467,1768763444634,-529.63928383,0.00017468,2]
[402661468,1768763444644,-1000.0,0.00017468,2]
[402661469,1768763444653,-1000.0,0.0001748,2]
[402661470,1768763444662,-307.5,0.0001748,2]
[402661471,1768763444672,-150.0,0.00017491,2]
[402661472,1768763444681,-1000.0,0.00017492,2]
[402661473,1768763444691,-1000.0,0.00017499,2]
[402661474,1768763444701,-700.0,0.000175,6]
[402661475,1768763444721,-150.0,0.00017501,2]
[402661476,1768763444731,-1000.0,0.00017505,2]
[402661477,1768763444742,-1000.0,0.00017513,2]
[402661478,1768763444751,-1492.7,0.00017526,2]
[402661479,1768763444763,-150.0,0.00017531,2]
[402661480,1768763444773,-307.5,0.00017532,2]
[402661481,1768763444784,-1000.0,0.00017534,2]
[402661482,1768763444795,-150.0,0.00017547,2]
[402661483,1768763444807,-168.0,0.00017552,2]
[402661484,1768763444816,-1000.0,0.00017553,2]
[402661485,1768763444827,-1000.0,0.0001756,2]
[402661486,1768763444837,-168.0,0.00017563,2]
[402661487,1768763444847,-481.32129536,0.00017567,2]
[402661488,1768763444862,-1000.0,0.00017568,2]
[402661489,1768763444872,-1000.0,0.0001758,2]
[402661490,1768763444881,-307.5,0.00017584,2]
[402661491,1768763444891,-1000.0,0.00017595,2]
[402661492,1768763444901,-700.0,0.000176,6]
[402661493,1768763444911,-25408.01210923,0.00017616,2]
[402661494,1768763444920,-15995.58670718,0.00017616,2]
[402661495,1768763444929,-523.32206151,0.00017616,2]
[402661496,1768763444939,-500.0,0.00017616,2]
[402661497,1768763444948,-432.96752271,0.00017616,2]
[402661498,1768763444957,-2000.0,0.00017616,2]
[402661499,1768763444966,-2000.0,0.00017616,2]
[402661500,1768763444975,-2000.0,0.00017616,2]
[402661501,1768763444984,-307.5,0.00017636,2]
[402661502,1768763444994,-150.0,0.0001764,2]
[402661503,1768763445004,-1612.94477692,0.0001764,2]
[402661504,1768763445013,-181.08010149,0.00017647,2]
[402661505,1768763445023,-595.37131296,0.00017647,2]
[402661506,1768763445032,-1000.0,0.00017669,2]
[402661507,1768763445042,-1000.0,0.0001767,2]
[402661508,1768763445052,-150.0,0.00017681,2]
[402661509,1768763445062,-996.43588471,0.00017682,2]
[402661510,1768763445071,-1000.0,0.00017686,2]
[402661511,1768763445080,-307.5,0.00017688,2]
[402661512,1768763445090,-1000.0,0.00017695,2]
[402661513,1768763445099,-1000.0,0.00017698,2]
[402661514,1768763445109,-1349.0,0.000177,2]
[402661515,1768763445119,-700.0,0.000177,6]
[402661516,1768763445128,-1000.0,0.00017704,2]
[402661517,1768763445138,-200.0,0.00017715,2]
[402661518,1768763445147,-1202.0,0.00017731,2]
[402661519,1768763445156,-915.0,0.00017731,2]
[402661520,1768763445166,-566.0,0.00017731,2]
[402661521,1768763445176,-2439.0,0.00017731,2]
[402661522,1768763445185,-6562.0,0.00017731,2]
[402661523,1768763445196,-307.5,0.0001774,2]
[402661524,1768763445205,-500.0,0.00017753,2]
[402661525,1768763445215,-500.0,0.00017753,2]
[402661526,1768763445225,-168.0,0.00017772,2]
[402661527,1768763445235,-291.46208432,0.00017783,2]
[402661528,1768763445244,-436.00984694,0.00017783,2]
[402661529,1768763445253,-589.9311,0.00017783,2]
[402661530,1768763445263,-1000.0,0.00017786,2]
[402661531,1768763445274,-307.5,0.00017792,2]
[402661532,1768763445283,-1000.0,0.00017797,2]
[402661533,1768763445294,-1000.0,0.00017798,2]
[402661534,1768763445303,-2000.0,0.000178,2]
[402661535,1768763445313,-150.0,0.000178,2]
[402661536,1768763445323,-1492.7,0.000178,2]
[402661537,1768763445332,-1000.0,0.000178,2]
[402661538,1768763445342,-700.0,0.000178,6]
[402661539,1768763445351,-1000.0,0.00017806,2]
[402661540,1768763445362,-150.0,0.00017808,2]
[402661541,1768763445374,-1000.0,0.00017808,2]
[402661542,1768763445385,-1000.0,0.00017813,2]
[402661543,1768763445395,-1000.0,0.00017817,2]
[402661544,1768763445404,-1000.0,0.00017826,2]
[402661545,1768763445414,-151.0,0.00017832,2]
[402661546,1768763445423,-170.710848,0.00017832,2]
[402661547,1768763445432,-170.710848,0.00017832,2]
[402661548,1768763445441,-170.710848,0.00017832,2]
[402661549,1768763445454,-170.710848,0.00017832,2]
[402661550,1768763445464,-168.0,0.00017839,2]
[402661551,1768763445473,-154.495229,0.00017841,2]
[402661552,1768763445482,-1000.0,0.00017841,2]
[402661553,1768763445491,-307.5,0.00017844,2]
[402661554,1768763445502,-10000.0,0.00017845,2]
[402661555,1768763445511,-1000.0,0.00017856,2]
[402661556,1768763445520,-1000.0,0.00017856,2]
[402661557,1768763445529,-200.0,0.00017856,2]
[402661558,1768763445538,-1000.0,0.00017858,2]
[402661559,1768763445548,-150.0,0.00017863,2]
[402661560,1768763445558,-3265.53,0.00017863,7]
[402661561,1768763445568,-3265.53,0.00017863,7]
[402661562,1768763445578,-3265.53,0.00017863,7]
[402661563,1768763445587,-3265.53,0.00017863,7]
[402661564,1768763445597,-1000.0,0.00017865,2]
[402661565,1768763445607,-1000.0,0.00017867,2]
[402661566,1768763445616,-500.0,0.00017874,2]
[402661567,1768763445626,-1000.0,0.00017876,2]
[402661568,1768763445635,-1000.0,0.00017883,2]
[402661569,1768763445647,-165.08,0.00017885,2]
[402661570,1768763445656,-1000.0,0.00017892,2]
[402661571,1768763445665,-284.91,0.00017892,2]
[402661572,1768763445674,-307.5,0.00017896,2]
[402661573,1768763445683,-150.0,0.00017899,2]
[402661574,1768763445692,-529.63928383,0.000179,2]
[402661575,1768763445701,-25000.0,0.000179,3]
[402661576,1768763445710,-5800.0,0.000179,2]
[402661577,1768763445719,-25408.01210923,0.000179,2]
[402661578,1768763445729,-1000.0,0.000179,2]
[402661580,1768763445738,-151.0,0.000179,2]
[402661581,1768763445747,-151.0,0.000179,2]
[402661582,1768763445755,-1669.0,0.000179,6]
[402661583,1768763445766,-15995.58670718,0.000179,2]
[402661584,1768763445775,-151.0,0.000179,2]
[402661585,1768763445784,-151.0,0.000179,2]
[402661586,1768763445794,-151.0,0.000179,2]
[402661587,1768763445804,-151.0,0.000179,2]
[402661588,1768763445814,-466.41210461,0.000179,2]
[402661589,1768763445823,-466.41210457,0.000179,2]
[402661590,1768763445834,-466.41210457,0.000179,2]
[402661591,1768763445844,-466.41210457,0.000179,2]
[402661592,1768763445853,-466.41210457,0.000179,2]
[402661593,1768763445862,-466.41210457,0.000179,2]
[402661594,1768763445873,-466.41210457,0.000179,2]
[402661595,1768763445882,-466.41210457,0.000179,2]
[402661596,1768763445891,-466.41210457,0.000179,2]
[402661597,1768763445901,-466.41210457,0.000179,2]
[402661598,1768763445910,-466.41210457,0.000179,2]
[402661599,1768763445919,-399.17994831,0.000179,3]
[402661600,1768763445928,-466.41210457,0.000179,2]
[402661601,1768763445937,-466.41210457,0.000179,2]
[402661602,1768763445947,-466.41210457,0.000179,2]
[402661603,1768763445959,-466.41210457,0.000179,2]
[402661604,1768763445970,-481.32129536,0.000179,2]
[402661605,1768763445980,-5244.58242462,0.000179,2]
[402661606,1768763445989,-466.41210457,0.000179,2]
[402661607,1768763445998,-466.41210457,0.000179,2]
[402661608,1768763446008,-466.41210457,0.000179,2]
[402661609,1768763446018,-466.41210457,0.000179,2]
[402661610,1768763446027,-39320.15856626,0.000179,2]
[402661611,1768763446038,-3847.15567048,0.000179,2]
[402661612,1768763446047,-466.41210457,0.000179,2]
[402661613,1768763446057,-1249.39886294,0.000179,2]
[402661614,1768763446067,-10290.69997386,0.000179,2]
[402661615,1768763446077,-165.08,0.00017904,2]
[402661616,1768763446086,-1000.0,0.00017912,2]
[402661617,1768763446096,-1000.0,0.00017915,2]
[402661618,1768763446105,-284.91,0.00017921,2]
[402661619,1768763446116,-165.08,0.00017923,2]
[402661620,1768763446125,-307.5,0.00017948,2]
[402661621,1768763446134,-284.91,0.0001795,2]
[402661622,1768763446144,-700.0,0.00017952,7]
[402661623,1768763446153,-500.0,0.00017952,7]
[402661624,1768763446163,-500.0,0.00017952,7]
[402661625,1768763446172,-311.31240548,0.00017959,2]
[402661626,1768763446183,-500.0,0.00017959,2]
[402661627,1768763446193,-1000.0,0.00017961,2]
[402661628,1768763446203,-400.0,0.0001797,2]
[402661629,1768763446212,-300.0,0.0001797,2]
[402661630,1768763446221,-500.0,0.00017973,2]
[402661631,1768763446231,-500.0,0.00017973,2]
[402661632,1768763446240,-150.0,0.00017973,2]
[402661633,1768763446249,-500.0,0.00017973,2]
[402661634,1768763446260,-500.0,0.00017973,2]
[402661635,1768763446270,-500.0,0.00017973,2]
[402661636,1768763446279,-151.0,0.00017973,2]
[402661637,1768763446288,-151.0,0.00017973,2]
[402661638,1768763446298,-500.0,0.00017973,2]
[402661639,1768763446308,-150.0,0.00017973,2]
[402661640,1768763446318,-163.4892868,0.00017979,2]
[402661641,1768763446327,-500.0,0.00017982,2]